bitfinex-derivatives/quotes_ETHF0:USTF0_20250524
["timestamp","ask_amount","ask_price","bid_price","bid_amount"]
[1748055609048,24.63493,2541.5,2541.4,3.54e-06]
[1748055609349,29.56393,2541.5,2541.4,3.54e-06]
[1748055609945,29.56393,2541.5,2540.5,1.08172502]
[1748055609946,0.62965,2540.6,2540.5,1.08172502]
[1748055610246,36.83745,2540.6,2540.5,1.08172502]
[1748055610444,0.62972,2540.3,2540.2,0.394]
[1748055610751,0.62975,2540.2,2540.1,0.394]
[1748055611041,15.293,2540.2,2540.0,2.40922502]
[1748055611250,15.293,2540.2,2540.1,0.62977]
[1748055611446,15.293,2540.2,2540.1,1.96987]
[1748055611750,0.62977,2540.1,2540.0,2.40922502]
[1748055611949,1.3093,2540.1,2540.0,3.03902502]
[1748055612749,1.3093,2540.1,2540.0,0.6298]
[1748055612954,0.6298,2540.0,2539.9,4.55100354]
[1748055614249,0.6298,2540.0,2539.9,5.18082354]
[1748055614449,0.6298,2540.0,2539.9,4.55100354]
[1748055614849,0.6298,2540.0,2539.9,0.64820354]
[1748055615054,1.3308,2540.0,2539.9,0.00590354]
[1748055615349,4.5386,2540.0,2539.9,0.00590354]
[1748055615649,1.3308,2540.0,2539.9,0.00590354]
[1748055616050,1.3308,2540.0,2539.9,0.63572354]
[1748055616247,1.3308,2540.0,2539.9,0.00590354]
[1748055616643,4.5386,2540.0,2539.9,0.00590354]
[1748055618651,0.62992,2539.5,2539.4,1.357]
[1748055618849,0.62997,2539.3,2539.2,3.2078]
[1748055619049,0.62997,2539.3,2539.2,3.8378]
[1748055619845,0.62997,2539.3,2539.2,3.2078]
[1748055620041,0.62997,2539.3,2539.2,3.8378]
[1748055620952,0.62997,2539.3,2539.2,3.2078]
[1748055623055,0.62997,2539.3,2539.2,0.394]
[1748055623856,1.96897,2539.3,2539.2,0.394]
[1748055624057,0.63,2539.2,2539.1,0.394]
[1748055624258,1.969,2539.2,2539.1,0.394]
[1748055625061,0.63002,2539.1,2539.0,0.00590354]
[1748055625254,21.84682,2539.1,2539.0,0.00590354]
[1748055628254,15.299,2539.1,2539.0,0.00590354]
[1748055628562,33.65002,2539.1,2539.0,0.63595354]
[1748055629058,33.02,2539.1,2539.0,2.61535354]
[1748055629259,4.5561,2539.4,2539.3,0.62997]
[1748055629459,36.2278,2539.4,2539.3,0.62997]
[1748055629759,15.92885,2539.8,2539.6,0.6299]
[1748055629953,15.92885,2539.8,2539.7,3.20667]
[1748055629954,15.299,2539.8,2539.7,3.20667]
[1748055631359,18.35082,2539.9,2539.7,3.20667]
[1748055631560,18.35082,2539.9,2539.8,1.2966]
[1748055632061,17.721,2539.9,2539.8,1.2966]
[1748055632464,0.62987,2539.7,2539.6,3.2078]
[1748055632763,0.62991,2539.6,2539.4,1.2966]
[1748055632965,0.62991,2539.6,2539.4,5.13434]
[1748055633263,0.62989,2539.7,2539.4,5.13434]
[1748055633659,0.62989,2539.7,2539.4,4.5044]
[1748055633863,0.62989,2539.7,2539.4,5.13434]
[1748055634162,0.62989,2539.7,2539.5,0.62991]
[1748055634363,0.62989,2539.7,2539.6,1.3111]
[1748055634659,17.24836,2539.8,2539.6,1.981]
[1748055635169,17.24836,2539.8,2539.7,1.3111]
[1748055635563,0.62987,2539.7,2539.6,0.6699]
[1748055635760,1.94837,2539.7,2539.6,0.6699]
[1748055636360,15.3,2539.8,2539.7,0.62987]
[1748055636661,33.02,2539.8,2539.7,2.04267]
[1748055637062,33.64985,2539.8,2539.7,1.4128]
[1748055637264,35.05925,2539.8,2539.7,1.4128]
[1748055638863,3.8537,2540.1,2539.7,1.4128]
[1748055639164,33.019,2540.0,2539.8,0.6603]
[1748055639359,3.2078,2540.1,2540.0,0.6298]
[1748055639558,18.5058,2540.1,2540.0,0.6298]
[1748055639864,36.2258,2540.1,2540.0,1.3155]
[1748055640466,36.85557,2540.1,2540.0,0.6857]
[1748055640767,36.2258,2540.1,2540.0,1.3155]
[1748055641169,33.018,2540.1,2540.0,1.3155]
[1748055641466,8.1368,2540.2,2540.1,0.62977]
[1748055641767,36.85555,2540.2,2540.1,1.2805]
[1748055644571,36.85555,2540.2,2540.1,1.91027]
[1748055645064,36.2258,2540.2,2540.1,1.91027]
[1748055645870,36.85555,2540.2,2540.1,1.91027]
[1748055646067,1.3919,2540.3,2540.2,0.62975]
[1748055646273,34.4069,2540.3,2540.2,2.04005]
[1748055646572,35.03662,2540.3,2540.2,1.4103]
[1748055648171,17.31862,2540.3,2540.2,1.4103]
[1748055648474,0.00590354,2540.4,2540.3,0.62972]
[1748055648670,0.00590354,2540.4,2540.3,1.31672]
[1748055648971,0.00590354,2540.4,2540.3,2.60022]
[1748055652272,0.00590354,2540.4,2540.3,5.80802]
[1748055652468,0.00590354,2540.4,2540.3,1.9705]
[1748055652666,0.62977,2540.1,2540.0,0.6857]
[1748055653067,0.62977,2540.1,2540.0,1.3155]
[1748055653266,1.96547,2540.1,2540.0,1.3155]
[1748055653474,1.96547,2540.1,2540.0,0.6857]
[1748055655578,3.84342354,2540.4,2540.2,0.62974]
[1748055655878,33.01,2540.3,2540.2,0.62973]
[1748055656178,34.316,2540.3,2540.2,0.62973]
[1748055656774,34.94572,2540.3,2540.2,0.62973]
[1748055657079,34.94572,2540.3,2540.1,0.62976]
[1748055657376,34.94572,2540.3,2540.2,0.62975]
[1748055660271,0.62975,2540.2,2540.1,0.62976]
[1748055660471,1.2803,2540.2,2540.1,0.62976]
[1748055660681,1.9841,2540.2,2540.1,0.62976]
[1748055661375,18.9963,2540.2,2540.1,0.62976]
[1748055664077,15.294,2540.3,2540.2,0.62975]
[1748055664280,1.37920354,2540.4,2540.3,0.62972]
[1748055664582,0.00590354,2540.4,2540.3,0.62972]
[1748055664781,0.00590354,2540.4,2540.3,2.00282]
[1748055665477,0.00590354,2540.4,2540.3,7.00282]
[1748055666679,0.00590354,2540.4,2540.3,9.77035828]
[1748055666880,15.92153,2541.1,2540.9,0.62955]
[1748055667179,15.92153,2541.1,2541.0,1.27335]
[1748055667180,15.292,2541.1,2541.0,1.27335]
[1748055667374,33.006,2541.1,2541.0,1.27335]
[1748055667574,34.92032,2541.1,2541.0,0.6438]
[1748055667774,17.20632,2541.1,2541.0,0.6438]
[1748055667986,34.92032,2541.1,2541.0,0.6438]
[1748055668780,0.62957,2540.9,2540.8,0.00590354]
[1748055669278,0.62957,2540.9,2540.8,0.63550354]
[1748055669279,17.714,2540.9,2540.8,0.63550354]
[1748055669677,0.64670354,2541.3,2540.8,0.63550354]
[1748055669678,0.00590354,2541.3,2540.9,1.57394]
[1748055669876,0.00590354,2541.3,2541.2,0.6295]
[1748055670076,1.37530354,2541.3,2541.2,0.6295]
[1748055670276,1.37530354,2541.3,2541.2,1.9073]
[1748055670579,0.00590354,2541.3,2541.2,1.9073]
[1748055671279,0.00590354,2541.3,2541.2,6.43933585]
[1748055672880,0.00590354,2541.3,2541.2,5.1151]
[1748055680790,0.00590354,2541.3,2541.2,3.2078]
[1748055681089,0.62953,2541.1,2540.8,1.39225847]
[1748055681287,1.3691,2541.0,2540.9,0.62957]
[1748055684392,19.0771,2541.0,2540.9,0.62957]
[1748055685590,1.3691,2541.0,2540.9,0.62957]
[1748055685992,1.3691,2541.0,2540.9,1.90787]
[1748055686789,1.33889354,2541.3,2541.1,0.62952]
[1748055687091,19.1149,2541.2,2541.1,0.62952]
[1748055687996,19.7444,2541.2,2541.0,3.83733]
[1748055688698,0.62952,2541.1,2541.0,3.2078]
[1748055688997,1.94062,2541.1,2541.0,3.2078]
[1748055690191,0.62957,2540.9,2540.8,0.00590354]
[1748055690497,1.3111,2541.1,2540.8,0.63548354]
[1748055690498,0.62956,2541.0,2540.8,0.63548354]
[1748055690790,1.3111,2540.9,2540.8,0.63548354]
[1748055691298,17.708,2541.2,2541.1,0.62952]
[1748055691299,18.394,2541.2,2541.1,0.62952]
[1748055691495,19.7837,2541.2,2541.1,0.62952]
[1748055692292,2.0757,2541.2,2541.1,0.62952]
[1748055692491,19.7847,2541.2,2541.1,0.62952]
[1748055692693,2.0757,2541.2,2541.1,0.62952]
[1748055692990,0.00590354,2541.3,2541.2,0.6295]
[1748055693191,0.00590354,2541.3,2541.2,2.7211]
[1748055693394,1.39560354,2541.3,2541.2,2.7211]
[1748055694495,1.39560354,2541.3,2541.2,4.04698712]
[1748055694699,0.00590354,2541.3,2541.2,4.04698712]
[1748055699400,0.65407118,2542.5,2542.4,0.6292]
[1748055699611,10.14506854,2543.1,2542.4,0.6292]
[1748055699612,10.14506854,2543.1,2542.4,3.2078]
[1748055699798,10.14506854,2543.1,2543.0,0.62905]
[1748055700102,10.14506854,2543.1,2542.9,3.2078]
[1748055700308,10.14506854,2543.1,2543.0,0.62905]
[1748055700493,2.97968473,2543.3,2542.9,3.83687]
[1748055701004,2.97968473,2543.3,2543.0,0.62905]
[1748055701207,2.97968473,2543.3,2543.2,0.629]
[1748055701396,1.63598473,2543.3,2543.2,0.629]
[1748055702195,1.63598473,2543.3,2543.2,2.0182]
[1748055702402,1.63598473,2543.3,2543.2,5.226]
[1748055702604,1.63598473,2543.3,2543.2,4.597]
[1748055702802,1.63598473,2543.3,2543.2,3.2078]
[1748055703204,0.00393564,2543.3,2543.2,3.2078]
[1748055703403,0.00393564,2543.3,2543.2,3.8368]
[1748055704712,0.00393564,2543.3,2543.2,3.2078]
[1748055704907,0.00393564,2543.3,2543.2,3.83681]
[1748055711303,3.2078,2543.8,2543.2,3.83681]
[1748055711500,3.2078,2544.6,2543.8,1.57215]
[1748055711702,3.2078,2544.6,2544.5,0.62868]
[1748055713106,15.304,2544.7,2544.6,0.62866]
[1748055714009,15.304,2544.7,2544.6,3.83646]
[1748055714713,17.696,2545.0,2544.9,0.62859]
[1748055715608,15.855,2545.1,2545.0,0.62856]
[1748055715799,15.855,2545.1,2545.0,1.97386]
[1748055715999,15.855,2545.3,2545.1,0.62853]
[1748055716208,15.855,2545.3,2544.6,1.57165]
[1748055716413,15.855,2545.3,2544.7,3.2078]
[1748055716701,3.2078,2545.5,2544.7,3.2078]
[1748055716702,3.2078,2545.5,2545.4,0.62846]
[1748055717208,8.2078,2545.5,2545.4,0.62846]
[1748055717408,3.2078,2545.5,2545.4,0.62846]
[1748055717613,34.8944,2545.6,2545.5,0.62844]
[1748055717800,17.2014,2545.6,2545.5,0.62844]
[1748055718914,15.855,2545.6,2545.5,0.62844]
[1748055719108,15.855,2545.6,2545.5,1.96084]
[1748055720516,15.855,2545.6,2545.5,0.62844]
[1748055722511,0.6373,2545.9,2545.7,0.62837]
[1748055722814,16.4863,2545.9,2545.8,0.62836]
[1748055723011,16.4863,2545.9,2545.7,0.62839]
[1748055723213,16.4863,2545.9,2545.6,0.63430354]
[1748055723606,16.4863,2545.9,2545.7,0.62839]
[1748055723913,16.4863,2545.9,2545.7,0.62838]
[1748055724217,21.4863,2545.9,2545.6,0.63430354]
[1748055724509,16.4863,2545.9,2545.7,0.62839]
[1748055724717,17.684,2545.8,2545.7,0.62839]
[1748055725110,16.4863,2545.9,2545.8,0.62836]
[1748055727312,16.4863,2545.9,2545.8,1.90326]
[1748055727614,15.849,2545.9,2545.8,1.90326]
[1748055727817,0.6958,2546.0,2545.7,3.83617]
[1748055728116,0.6958,2546.0,2545.8,0.62836]
[1748055728626,0.6958,2546.0,2545.9,0.62834]
[1748055728916,0.6958,2546.0,2545.8,0.62836]
[1748055729418,0.62839,2545.7,2545.6,0.00590354]
[1748055729619,16.47239,2545.7,2545.6,0.00590354]
[1748055732916,1.57114,2545.5,2545.0,4.28768471]
[1748055733123,20.8878,2545.4,2545.0,1.07988471]
[1748055733422,17.2098,2545.3,2545.1,0.62852]
[1748055733918,17.2098,2545.3,2544.9,4.57179183]
[1748055734925,17.83829,2545.3,2545.1,0.62852]
[1748055735419,17.83829,2545.3,2545.0,0.62855]
[1748055735724,17.8383,2545.3,2545.1,0.62853]
[1748055736027,1.3668,2545.3,2545.2,0.62851]
[1748055736228,35.51931,2545.3,2545.0,1.2984]
[1748055736418,0.62854,2545.1,2544.9,3.84227183]
[1748055736617,1.3261,2545.0,2544.9,3.84227183]
[1748055736824,1.3261,2545.0,2544.9,4.48619183]
[1748055737020,1.3261,2545.0,2544.9,5.11478183]
[1748055738426,1.3261,2545.0,2544.9,5.83810245]
[1748055738627,1.3261,2545.0,2544.9,6.46669245]
[1748055738923,6.95466,2545.0,2544.9,1.35780245]
[1748055739128,7.60516,2545.0,2544.9,1.35780245]
[1748055740215,7.60516,2545.0,2544.9,0.00589183]
[1748055741625,0.62866,2544.6,2544.5,1.07988471]
[1748055741824,16.47366,2544.6,2544.5,1.07988471]
[1748055742025,34.15566,2544.6,2544.5,1.07988471]
[1748055742323,34.15566,2544.6,2544.5,1.70857471]
[1748055742324,33.527,2544.6,2544.5,1.70857471]
[1748055742529,34.15566,2544.6,2544.5,2.43182692]
[1748055742726,35.52826,2544.6,2544.5,2.43182692]
[1748055743127,17.2176,2544.6,2544.5,3.06051692]
[1748055743328,34.8996,2544.6,2544.5,4.38001692]
[1748055743827,34.8996,2544.6,2544.5,3.75132692]
[1748055744518,35.52826,2544.6,2544.5,3.75132692]
[1748055744923,17.2176,2544.6,2544.5,3.75132692]
[1748055745121,34.9006,2544.6,2544.5,3.75132692]
[1748055745327,35.52926,2544.6,2544.5,3.75132692]
[1748055745727,35.52926,2544.6,2544.5,2.43182692]
[1748055745923,34.15666,2544.6,2544.5,2.43182692]
[1748055746129,33.528,2544.6,2544.5,3.73882692]
[1748055746323,33.528,2544.6,2544.5,4.38102692]
[1748055746533,33.528,2544.6,2544.5,5.00971692]
[1748055746724,15.845,2544.6,2544.5,5.00971692]
[1748055746924,33.528,2544.6,2544.5,5.00971692]
[1748055747227,0.6286,2544.9,2544.6,0.62864]
[1748055747427,17.683,2544.7,2544.6,3.83644]
[1748055748631,18.31164,2544.7,2544.6,5.63962692]
[1748055749227,17.683,2544.7,2544.6,5.63962692]
[1748055749526,18.31164,2544.7,2544.6,5.63962692]
[1748055749728,15.643,2544.8,2544.6,5.63962692]
[1748055750029,17.683,2544.7,2544.6,5.63962692]
[1748055750425,18.31164,2544.7,2544.6,5.63962692]
[1748055751535,18.31164,2544.7,2544.6,4.55974221]
[1748055753527,18.31164,2544.7,2544.6,3.2078]
[1748055755037,0.62866,2544.6,2544.5,0.6422]
[1748055755637,18.31165,2544.7,2544.5,0.6422]
[1748055755841,0.62866,2544.6,2544.5,0.6422]
[1748055758136,17.684,2544.6,2544.5,0.6422]
[1748055758337,17.684,2544.6,2544.5,1.27089]
[1748055758733,16.27265,2544.7,2544.5,1.27089]
[1748055759044,17.684,2544.6,2544.5,1.27089]
[1748055759345,1.92618,2545.0,2544.5,0.6422]
[1748055759541,33.328,2544.9,2544.6,3.8524]
[1748055759748,33.328,2544.9,2544.8,0.62861]
[1748055759944,15.644,2545.1,2545.0,0.62856]
[1748055760141,33.328,2545.1,2545.0,0.62856]
[1748055760641,15.644,2545.5,2545.0,0.6535]
[1748055760841,0.62849,2545.3,2545.2,3.2078]
[1748055761041,0.62849,2545.3,2545.2,4.5325]
[1748055762245,18.31248,2545.4,2545.2,4.5325]
[1748055762442,17.684,2545.4,2545.3,1.3247]
[1748055762642,18.31247,2545.4,2545.3,1.3247]
[1748055763141,18.31147,2545.4,2545.3,1.3247]
[1748055763447,17.683,2545.4,2545.3,1.3247]
[1748055763635,18.31147,2545.4,2545.3,1.3247]
[1748055764041,17.683,2545.4,2545.3,1.3247]
[1748055764437,15.643,2545.6,2545.3,1.3247]
[1748055764642,0.62844,2545.5,2545.3,1.3247]
[1748055764845,0.62844,2545.5,2545.3,1.95319]
[1748055765149,35.22913,2545.6,2545.3,1.95319]
[1748055765345,0.62846,2545.5,2545.3,1.95319]
[1748055765846,0.62844,2545.5,2545.3,1.95318]
[1748055766250,18.33246451,2545.9,2545.7,0.62838]
[1748055766443,17.68786451,2545.9,2545.8,1.3047]
[1748055767150,0.00586451,2545.9,2545.8,1.93307]
[1748055767651,0.63420451,2545.9,2545.8,1.3047]
[1748055768248,0.00586451,2545.9,2545.8,1.93307]
[1748055769548,0.00586451,2545.9,2545.8,1.3047]
[1748055769741,0.62839,2545.7,2545.6,3.21369183]
[1748055769948,0.62839,2545.7,2545.6,0.00589183]
[1748055770142,1.9398,2545.8,2545.6,0.00589183]
[1748055770449,1.90208,2545.8,2545.6,4.58379183]
[1748055770641,1.90207,2545.8,2545.7,1.3701]
[1748055770850,16.27422451,2545.9,2545.7,1.3701]
[1748055771044,0.00586451,2545.9,2545.8,0.62837]
[1748055771250,0.00586451,2545.9,2545.8,4.49707]
[1748055777850,1.2975,2546.1,2546.0,25.62245549]
[1748055778654,1.2975,2546.1,2546.0,27.00685549]
[1748055779564,1.2975,2546.1,2546.0,25.62245549]
[1748055779952,1.9258,2546.1,2546.0,24.99413549]
[1748055780251,1.2975,2546.1,2546.0,24.99413549]
[1748055780456,25.8986,2546.1,2546.0,24.12727578]
[1748055780647,25.8986,2546.1,2546.0,23.27173578]
[1748055781052,43.5746,2546.1,2546.0,23.27173578]
[1748055782052,25.8986,2546.1,2546.0,23.27173578]
[1748055782257,38.5746,2546.1,2546.0,23.27173578]
[1748055783061,43.5746,2546.1,2546.0,23.27173578]
[1748055783663,25.8986,2546.1,2546.0,23.27173578]
[1748055783857,43.5746,2546.1,2546.0,23.27173578]
[1748055784053,37.9463,2546.1,2546.0,23.27173578]
[1748055784256,20.2703,2546.1,2546.0,23.27173578]
[1748055784554,37.9463,2546.1,2546.0,23.27173578]
[1748055785154,38.5746,2546.1,2546.0,23.27173578]
[1748055789156,38.5756,2546.1,2546.0,23.27173578]
[1748055789662,38.5766,2546.1,2546.0,23.27173578]
[1748055792164,38.5766,2546.1,2546.0,24.61313578]
[1748055792964,17.0635,2546.1,2546.0,25.24145578]
[1748055793164,34.7405,2546.1,2546.0,25.24145578]
[1748055793564,35.3688,2546.1,2546.0,25.24145578]
[1748055793766,35.3688,2546.1,2546.0,25.91745578]
[1748055794069,35.3688,2546.1,2546.0,23.27173578]
[1748055794272,35.3688,2546.1,2546.0,23.90005578]
[1748055795268,35.3688,2546.1,2546.0,23.27173578]
[1748055795669,35.3784513,2546.1,2546.0,24.58943578]
[1748055796677,35.3784513,2546.1,2546.0,23.27173578]
[1748055797667,35.3784513,2546.1,2546.0,23.90005578]
[1748055798475,35.3784513,2546.1,2546.0,23.27173578]
[1748055798976,17.7014513,2546.1,2546.0,23.90005578]
[1748055799180,35.3774513,2546.1,2546.0,23.90005578]
[1748055800368,35.3774513,2546.1,2546.0,23.27173578]
[1748055802178,35.3774513,2546.1,2546.0,23.90005578]
[1748055802686,35.3774513,2546.1,2546.0,23.27173578]
[1748055803081,35.3774513,2546.1,2546.0,23.90005578]
[1748055803981,1.9354513,2546.1,2546.0,23.90005578]
[1748055804180,34.0789513,2546.1,2546.0,23.90005578]
[1748055805681,33.4506513,2546.1,2546.0,23.90005578]
[1748055806378,34.0789513,2546.1,2546.0,23.90005578]
[1748055808182,33.4506513,2546.1,2546.0,23.90005578]
[1748055809181,15.7746513,2546.1,2546.0,23.90005578]
[1748055809384,33.4506513,2546.1,2546.0,23.90005578]
[1748055809890,34.0789513,2546.1,2546.0,23.27173578]
[1748055810185,33.4506513,2546.1,2546.0,23.90005578]
[1748055811795,34.0789513,2546.1,2546.0,23.90005578]
[1748055812688,0.0096513,2546.1,2546.0,23.90005578]
[1748055813090,33.3246513,2546.1,2546.0,23.90005578]
[1748055814297,33.3246513,2546.1,2546.0,25.26208985]
[1748055815685,15.6486513,2546.1,2546.0,25.26208985]
[1748055815983,15.6486513,2546.1,2546.0,28.46988985]
[1748055815984,33.3246513,2546.1,2546.0,28.46988985]
[1748055816489,17.6856513,2546.1,2546.0,28.46988985]
[1748055817695,17.6856513,2546.1,2546.0,29.54977456]
[1748055817997,17.6846513,2546.1,2546.0,29.54977456]
[1748055818985,0.00589183,2546.3,2546.2,0.78534]
[1748055819291,17.68089183,2546.3,2546.2,0.78534]
[1748055819597,17.68089183,2546.3,2546.2,3.47517407]
[1748055820398,17.68089183,2546.3,2546.2,3.79465991]
[1748055820592,0.00589183,2546.3,2546.2,3.79465991]
[1748055820793,17.68089183,2546.3,2546.2,3.79465991]
[1748055821297,17.68089183,2546.3,2546.2,2.68983407]
[1748055821599,17.68089183,2546.3,2546.2,3.47517407]
[1748055822595,18.46620183,2546.3,2546.2,2.68983407]
[1748055822899,18.46620183,2546.3,2546.2,1.36203407]
[1748055826102,0.79120183,2546.3,2546.2,1.36203407]
[1748055826398,18.46520183,2546.3,2546.2,1.36203407]
[1748055826702,18.46520183,2546.3,2546.2,2.76073407]
[1748055826899,0.79120183,2546.3,2546.2,2.76073407]
[1748055827099,18.46520183,2546.3,2546.2,2.76073407]
[1748055827497,18.46520183,2546.3,2546.2,1.3987]
[1748055828501,0.78534,2546.2,2546.1,0.677]
[1748055828702,2.82034,2546.2,2546.1,0.677]
[1748055828894,2.82034,2546.2,2546.1,2.76267]
[1748055829095,2.035,2546.2,2546.1,2.76267]
[1748055829399,2.82034,2546.2,2546.1,2.76267]
[1748055830301,0.78537,2546.1,2546.0,26.47953578]
[1748055830600,2.15777,2546.1,2546.0,23.27173578]
[1748055830903,0.00589183,2546.3,2546.2,0.78534]
[1748055831399,0.78534,2546.2,2546.1,0.6536]
[1748055831705,18.45934,2546.2,2546.1,0.6536]
[1748055832096,19.77724,2546.2,2546.1,0.6536]
[1748055832295,1.3179,2546.2,2546.1,1.43897]
[1748055832503,34.09634,2546.2,2546.1,2.0118]
[1748055833508,34.09634,2546.2,2546.1,2.79717]
[1748055833802,34.09634,2546.2,2546.1,4.15872827]
[1748055834207,34.09634,2546.2,2546.1,3.37335827]
[1748055835902,2.02869183,2546.3,2546.1,3.37335827]
[1748055835903,0.00589183,2546.3,2546.2,0.78534]
[1748055836105,17.67989183,2546.3,2546.2,2.0585]
[1748055836310,0.65579685,2546.6,2546.2,7.0585]
[1748055836508,0.65579685,2546.6,2546.5,0.78525]
[1748055837010,0.65579685,2546.6,2546.5,2.88175]
[1748055838512,0.65579685,2546.6,2546.5,4.24330827]
[1748055838705,17.674,2546.7,2546.6,0.78522]
[1748055838904,17.674,2546.7,2546.6,2.19032]
[1748055840410,17.673,2546.7,2546.6,2.19032]
[1748055840912,17.673,2546.7,2546.6,3.55187827]
[1748055841112,0.65579685,2546.9,2546.8,0.78516]
[1748055841315,18.32779685,2546.9,2546.8,0.78516]
[1748055841812,18.32779685,2546.9,2546.8,2.14406]
[1748055842412,18.32779685,2546.9,2546.8,3.50561827]
[1748055842814,19.11291685,2546.9,2546.8,2.72045827]
[1748055843014,18.32779685,2546.9,2546.8,3.50561827]
[1748055845112,1.2754,2547.2,2546.8,2.72045827]
[1748055845313,33.134,2547.1,2546.9,1.9728]
[1748055845508,33.134,2547.1,2547.0,2.12079]
[1748055845708,35.19446,2547.1,2547.0,1.3357]
[1748055846015,0.78509,2547.0,2546.9,1.36155827]
[1748055846207,2.07039,2547.0,2546.9,1.36155827]
[1748055847016,2.07039,2547.0,2546.9,2.14667827]
[1748055847208,1.2853,2547.0,2546.9,2.14667827]
[1748055847408,1.2853,2547.0,2546.9,0.78512]
[1748055848018,4.66502,2547.3,2546.8,1.2934]
[1748055848213,1.2853,2547.2,2547.1,0.78505]
[1748055848518,19.74034,2547.2,2547.0,0.78507]
[1748055849009,1.3022,2547.1,2547.0,2.09437]
[1748055849204,2.08726,2547.1,2547.0,1.3093]
[1748055849415,1.3022,2547.1,2547.0,27.09439]
[1748055851819,2.08726,2547.1,2547.0,27.09439]
[1748055852021,1.3022,2547.1,2547.0,27.09439]
[1748055852617,3.99272,2547.6,2547.4,0.78495]
[1748055852813,34.4231,2547.5,2547.1,1.9772]
[1748055853021,18.45399,2547.4,2547.2,2.73213]
[1748055853319,0.785,2547.3,2547.2,2.73213]
[1748055853516,2.0781,2547.3,2547.2,1.9471]
[1748055853821,1.9966,2547.3,2547.2,2.73213]
[1748055854020,0.78506,2547.1,2547.0,28.2078]
[1748055854221,1.9441,2547.2,2547.0,28.2078]
[1748055854419,34.4231,2547.1,2547.0,28.2078]
[1748055854622,34.4231,2547.1,2547.0,29.4913]
[1748055854820,34.4231,2547.1,2547.0,30.27639]
[1748055855017,1.2931,2547.1,2547.0,30.27639]
[1748055855218,18.45398,2547.4,2547.0,29.4913]
[1748055855423,17.669,2547.3,2547.1,1.9382]
[1748055855625,3.2078,2547.6,2547.1,1.9382]
[1748055855923,18.453,2547.3,2547.2,1.9971]
[1748055856125,0.785,2547.3,2547.2,1.9971]
[1748055856311,18.453,2547.3,2547.2,1.9971]
[1748055856514,19.7921,2547.3,2547.2,1.9971]
[1748055857320,33.129,2547.3,2547.2,2.78213]
[1748055857723,33.914,2547.3,2547.2,1.9971]
[1748055857921,33.129,2547.3,2547.2,2.78213]
[1748055859324,1.3391,2547.5,2547.2,1.9971]
[1748055859625,1.3391,2547.5,2547.3,4.5424]
[1748055859825,17.668,2547.4,2547.3,5.3274]
[1748055860025,17.668,2547.4,2547.3,4.5424]
[1748055860222,18.45297,2547.4,2547.3,3.2078]
[1748055860920,17.668,2547.4,2547.3,3.2078]
[1748055861515,19.0719,2547.4,2547.3,3.2078]
[1748055861720,19.85687,2547.4,2547.3,3.2078]
[1748055861928,19.0719,2547.4,2547.3,3.9928]
[1748055862423,19.85687,2547.4,2547.3,3.2078]
[1748055863228,19.0719,2547.4,2547.3,3.2078]
[1748055863428,19.85687,2547.4,2547.3,3.2078]
[1748055863630,19.0719,2547.4,2547.3,3.2078]
[1748055863931,19.85687,2547.4,2547.3,3.2078]
[1748055864317,19.0719,2547.4,2547.3,3.2078]
[1748055864531,19.0719,2547.4,2547.3,3.9928]
[1748055864723,1.4039,2547.4,2547.3,3.2078]
[1748055864925,35.31387,2547.4,2547.3,3.2078]
[1748055865119,0.78506,2547.2,2547.0,25.0]
[1748055865328,0.6535,2547.1,2547.0,25.0]
[1748055865525,2.6817,2547.1,2547.0,25.78509]
[1748055866631,3.46676,2547.1,2547.0,25.0]
[1748055867232,3.46676,2547.1,2547.0,26.36428117]
[1748055867826,2.6817,2547.1,2547.0,27.14937117]
[1748055868033,36.0247,2547.1,2547.0,27.14937117]
[1748055869030,2.6817,2547.1,2547.0,27.14937117]
[1748055869233,36.0247,2547.1,2547.0,27.14937117]
[1748055870830,2.0282,2547.1,2547.0,27.14937117]
[1748055871031,2.0282,2547.1,2547.0,29.16467117]
[1748055871226,35.3722,2547.1,2547.0,29.16467117]
[1748055871421,0.6464,2547.4,2547.3,0.785]
[1748055871733,35.47319,2547.4,2547.2,0.78501]
[1748055871933,35.47319,2547.4,2547.3,0.785]
[1748055872231,35.47319,2547.4,2547.2,0.78502]
[1748055872630,1.348,2547.3,2547.2,0.78502]
[1748055872833,2.133,2547.3,2547.2,0.78502]
[1748055873133,2.133,2547.3,2547.1,2.79964]
[1748055873134,2.13302,2547.3,2547.1,2.79964]
[1748055873336,2.13302,2547.3,2547.2,0.78503]
[1748055873634,0.78503,2547.2,2547.1,2.0146]
[1748055873937,1.3893,2547.2,2547.1,2.79965]
[1748055874233,2.17433,2547.2,2547.1,2.79965]
[1748055874438,1.3893,2547.2,2547.1,2.79965]
[1748055874643,1.3893,2547.2,2547.1,4.16381096]
[1748055874933,2.17433,2547.2,2547.1,2.14922096]
[1748055875336,2.17433,2547.2,2547.1,1.36416096]
[1748055876230,2.17433,2547.2,2547.1,2.14922096]
[1748055876835,2.17433,2547.2,2547.1,1.36416096]
[1748055877630,2.17433,2547.2,2547.1,2.14922096]
[1748055877929,2.17433,2547.2,2547.1,1.36416096]
[1748055878837,2.17433,2547.2,2547.1,2.14922096]
[1748055879132,2.17433,2547.2,2547.1,1.36416096]
[1748055879734,2.17433,2547.2,2547.1,2.14922096]
[1748055880236,15.677,2547.2,2547.1,2.14922096]
[1748055880535,34.12903,2547.2,2547.1,2.14922096]
[1748055880833,33.344,2547.2,2547.1,2.14922096]
[1748055881334,34.12903,2547.2,2547.1,2.14922096]
[1748055882425,34.12903,2547.2,2547.1,1.36416096]
[1748055883043,34.12903,2547.2,2547.1,2.14922096]
[1748055883227,34.12903,2547.2,2547.1,1.36416096]
[1748055883631,42.33683,2547.2,2547.1,0.14039783]